[Event "Orsha A 2021"]
[Site "Orsha"]
[Date "2021.04.06"]
[Round "2.2"]
[White "Klachkou, Tsimafei"]
[Black "Stupak, Kirill"]
[Result "0-1"]
[ECO "A50"]
[WhiteElo "1992"]
[BlackElo "2501"]
[Annotator "ChessBase"]
[PlyCount "56"]
[EventDate "2021.04.06"]
[EventType "swiss"]
[EventCountry "BLR"]
[SourceTitle "playchess.com"]
[Source "ChessBase"]
[SourceQuality "1"]
[TimeControl "5400+30"]

1. d4 {[%emt 0:00:00]} Nf6 {[%emt 0:00:00]} 2. c4 {[%emt 0:00:00]} b6 {[%emt 0:00:22]} 3. f3 {[%emt 0:00:10]} Nc6 {[%emt 0:01:15]} 4. d5 {[%emt 0:01:18]} Ne5 {[%emt 0:01:11]} 5. e4 {[%emt 0:00:15]} Ng6 {[%emt 0:00:37]} 6. Be3 {[%emt 0:01:25]} e5 {[%emt 0:00:06]} 7. Nc3 {[%emt 0:00:22]} Bc5 {[%emt 0:00:43]} 8. Qd2 {[%emt 0:00:53]} d6 {[%emt 0:03:31]} 9. Nge2 {[%emt 0:06:45]} a5 {[%emt 0:03:08]} 10. Nb5 {[%emt 0:11:03]} Nd7 {[%emt 0:05:03]} 11. Nc1 {[%emt 0:12:58]} O-O {[%emt 0:04:19]} 12. Nd3 {[%emt 0:03:31]} Bxe3 {[%emt 0:02:58]} 13. Qxe3 {[%emt 0:00:01]} f5 {[%emt 0:00:05]} 14. exf5 {[%emt 0:03:47]} Rxf5 {[%emt 0:03:11]} 15. g3 {[%emt 0:01:35]} Rf7 {[%emt 0:06:25]} 16. O-O-O {[%emt 0:02:54]} Ba6 {[%emt 0:04:17]} 17. a4 {[%emt 0:00:38]} Bxb5 {[%emt 0:06:38]} 18. cxb5 {[%emt 0:03:11]} Ne7 {[%emt 0:03:50]} 19. Ne1 {[%emt 0:10:28]} Nf5 {[%emt 0:03:40]} 20. Qa3 {[%emt 0:01:56]} Nc5 {[%emt 0:04:13]} 21. Nc2 {[%emt 0:01:29]} Qg5+ {[%emt 0:05:32]} 22. Kb1 {[%emt 0:00:03]} Raf8 {[%emt 0:00:06]} 23. Bd3 {[%emt 0:02:50]} Ne7 {[%emt 0:04:13]} 24. Be4 {[%emt 0:04:52]} Kh8 {[%emt 0:00:12]} 25. Qa2 {[%emt 0:01:27]} Ng8 {[%emt 0:00:39]} 26. Ne1 {[%emt 0:01:43]} Nxe4 {[%emt 0:01:18]} 27. fxe4 {[%emt 0:00:01]} Nf6 {[%emt 0:01:36]} 28. Qc4 {[%emt 0:02:49]} Qg6 {[%emt 0:01:08]} 0-1

[Event "Orsha A 2021"]
[Site "Orsha"]
[Date "2021.04.06"]
[Round "2.3"]
[White "Zarubitski, Viachaslau"]
[Black "Sokolov, Ilia"]
[Result "1-0"]
[ECO "C16"]
[WhiteElo "2456"]
[BlackElo "1938"]
[Annotator "ChessBase"]
[PlyCount "79"]
[EventDate "2021.04.06"]
[EventType "swiss"]
[EventCountry "BLR"]
[SourceTitle "playchess.com"]
[Source "ChessBase"]
[SourceQuality "1"]
[TimeControl "5400+30"]

1. e4 {[%emt 0:00:00]} e6 {[%emt 0:00:00]} 2. d4 {[%emt 0:00:00]} d5 {[%emt 0:00:00]} 3. Nc3 {[%emt 0:00:00]} Bb4 {[%emt 0:00:00]} 4. e5 {[%emt 0:00:00]} Ne7 {[%emt 0:00:00]} 5. a3 {[%emt 0:00:00]} Bxc3+ {[%emt 0:00:00]} 6. bxc3 {[%emt 0:00:00]} b6 {[%emt 0:00:00]} 7. Qg4 {[%emt 0:00:14]} Ng6 {[%emt 0:00:00]} 8. h4 {[%emt 0:00:16]} h5 {[%emt 0:00:00]} 9. Qd1 {[%emt 0:00:10]} Ba6 {[%emt 0:00:03]} 10. Bxa6 {[%emt 0:00:04]} Nxa6 {[%emt 0:00:05]} 11. Bg5 {[%emt 0:00:03]} Qd7 {[%emt 0:00:01]} 12. Ne2 {[%emt 0:00:07]} Qa4 {[%emt 0:02:58]} 13. O-O {[%emt 0:00:44]} Ne7 {[%emt 0:05:49]} 14. Nf4 {[%emt 0:09:54]} g6 {[%emt 0:06:18]} 15. Bxe7 {[%emt 0:00:50]} Kxe7 {[%emt 0:00:05]} 16. Nh3 {[%emt 0:00:03]} Nb8 {[%emt 0:01:46]} 17. Ng5 {[%emt 0:00:33]} Nd7 {[%emt 0:00:52]} 18. Re1 {[%emt 0:00:10]} Rhg8 {[%emt 0:01:57]} 19. Re3 {[%emt 0:04:23]} Rg7 {[%emt 0:02:40]} 20. Rf3 {[%emt 0:02:08]} Rc8 {[%emt 0:02:23]} 21. Rf4 {[%emt 0:01:07]} Rf8 {[%emt 0:05:07]} 22. Qd2 {[%emt 0:00:07]} a5 {[%emt 0:02:42]} 23. Re1 {[%emt 0:00:38]} Qxa3 {[%emt 0:02:20]} 24. c4 {[%emt 0:00:58]} c6 {[%emt 0:07:27]} 25. cxd5 {[%emt 0:01:19]} cxd5 {[%emt 0:00:01]} 26. Re3 {[%emt 0:18:07]} Qb4 {[%emt 0:00:59]} 27. Qc1 {[%emt 0:00:28]} a4 {[%emt 0:02:22]} 28. c3 {[%emt 0:19:41]} Rc8 {[%emt 0:00:01]} 29. Ref3 {[%emt 0:01:48]} a3 {[%emt 0:00:02]} 30. Qc2 {[%emt 0:07:28]} Rc4 {[%emt 0:06:44]} 31. Rxf7+ {[%emt 0:03:23]} Rxf7 {[%emt 0:00:07]} 32. Rxf7+ {[%emt 0:00:02]} Kd8 {[%emt 0:00:02]} 33. Qxg6 {[%emt 0:02:51]} Qa4 {[%emt 0:06:24]} 34. Nxe6+ {[%emt 0:02:21]} Kc8 {[%emt 0:00:00]} 35. Qg8+ {[%emt 0:00:16]} Kb7 {[%emt 0:00:02]} 36. Qd8 {[%emt 0:01:24]} Rxc3 {[%emt 0:01:30]} 37. Rxd7+ {[%emt 0:00:28]} Ka6 {[%emt 0:00:01]} 38. Qa8+ {[%emt 0:00:47]} Kb5 {[%emt 0:00:00]} 39. Nc7+ {[%emt 0:00:10]} Rxc7 {[%emt 0:00:51]} 40. Qxa4+ {[%emt 0:00:04]} 1-0

[Event "Orsha A 2021"]
[Site "Orsha"]
[Date "2021.04.06"]
[Round "2.4"]
[White "Poliakova, Varvara"]
[Black "Apryshko, Gleb"]
[Result "0-1"]
[ECO "B06"]
[WhiteElo "1918"]
[BlackElo "2391"]
[Annotator "ChessBase"]
[PlyCount "110"]
[EventDate "2021.04.06"]
[EventType "swiss"]
[EventCountry "BLR"]
[SourceTitle "playchess.com"]
[Source "ChessBase"]
[SourceQuality "1"]
[TimeControl "5400+30"]

1. e4 {[%emt 0:00:00]} g6 {[%emt 0:01:44]} 2. d4 {[%emt 0:00:03]} Bg7 {[%emt 0:00:11]} 3. Nf3 {[%emt 0:00:51]} d6 {[%emt 0:00:40]} 4. Bd3 {[%emt 0:02:05]} Nd7 {[%emt 0:02:55]} 5. c3 {[%emt 0:00:50]} e6 {[%emt 0:00:14]} 6. O-O {[%emt 0:01:41]} b6 {[%emt 0:00:02]} 7. Re1 {[%emt 0:01:20]} Bb7 {[%emt 0:00:07]} 8. Na3 {[%emt 0:02:46]} a6 {[%emt 0:00:19]} 9. Nc2 {[%emt 0:01:30]} Ne7 {[%emt 0:01:00]} 10. h3 {[%emt 0:03:42]} h6 {[%emt 0:09:58]} 11. Qe2 {[%emt 0:05:29]} c5 {[%emt 0:02:18]} 12. a4 {[%emt 0:03:30]} Qc7 {[%emt 0:01:47]} 13. Bf4 {[%emt 0:04:31]} O-O {[%emt 0:06:20]} 14. Bh2 {[%emt 0:04:41]} Nc6 {[%emt 0:04:24]} 15. Rad1 {[%emt 0:04:52]} Rfd8 {[%emt 0:01:38]} 16. Bc4 {[%emt 0:05:11]} Na5 {[%emt 0:00:31]} 17. Ba2 {[%emt 0:04:46]} Rac8 {[%emt 0:06:26]} 18. Na3 {[%emt 0:08:50]} Bf8 {[%emt 0:06:39]} 19. d5 {[%emt 0:07:48]} e5 {[%emt 0:00:15]} 20. Rb1 {[%emt 0:05:08]} c4 {[%emt 0:07:31]} 21. Nd2 {[%emt 0:00:43]} Nc5 {[%emt 0:00:09]} 22. Naxc4 {[%emt 0:01:38]} Nxa4 {[%emt 0:00:25]} 23. Nxa5 {[%emt 0:02:44]} bxa5 {[%emt 0:00:12]} 24. Qe3 {[%emt 0:01:40]} Nb6 {[%emt 0:19:19]} 25. Ra1 {[%emt 0:03:25]} a4 {[%emt 0:01:19]} 26. Bb1 {[%emt 0:00:33]} Rb8 {[%emt 0:00:02]} 27. Bd3 {[%emt 0:01:29]} Bc8 {[%emt 0:01:22]} 28. Reb1 {[%emt 0:01:41]} a5 {[%emt 0:03:22]} 29. Bg3 {[%emt 0:01:10]} Bd7 {[%emt 0:00:14]} 30. f3 {[%emt 0:01:22]} Kh7 {[%emt 0:01:54]} 31. Bf2 {[%emt 0:01:07]} Be7 {[%emt 0:00:17]} 32. Qe2 {[%emt 0:01:25]} Bg5 {[%emt 0:00:01]} 33. h4 {[%emt 0:01:34]} Be7 {[%emt 0:00:50]} 34. Rc1 {[%emt 0:02:48]} g5 {[%emt 0:02:19]} 35. h5 {[%emt 0:01:03]} g4 {[%emt 0:00:05]} 36. f4 {[%emt 0:00:51]} g3 {[%emt 0:00:01]} 37. Be3 {[%emt 0:02:07]} Rg8 {[%emt 0:00:24]} 38. Nf3 {[%emt 0:01:17]} Bg4 {[%emt 0:00:40]} 39. c4 {[%emt 0:00:35]} Nd7 {[%emt 0:00:28]} 40. Rxa4 {[%emt 0:03:58]} Nc5 {[%emt 0:00:01]} 41. Ra3 {[%emt 0:00:20]} Nxd3 {[%emt 0:07:42]} 42. Rxd3 {[%emt 0:00:13]} f5 {[%emt 0:00:01]} 43. Bd2 {[%emt 0:02:26]} Rxb2 {[%emt 0:00:45]} 44. fxe5 {[%emt 0:00:35]} dxe5 {[%emt 0:02:28]} 45. Kf1 {[%emt 0:02:28]} Bb4 {[%emt 0:01:06]} 46. d6 {[%emt 0:01:12]} Qf7 {[%emt 0:00:23]} 47. d7 {[%emt 0:01:34]} Qxh5 {[%emt 0:10:26]} 48. Qe3 {[%emt 0:00:32]} f4 {[%emt 0:02:10]} 49. d8=Q {[%emt 0:00:18]} Rxd8 {[%emt 0:00:33]} 50. Qa7+ {[%emt 0:00:02]} Kg6 {[%emt 0:00:28]} 51. Rxd8 {[%emt 0:00:14]} Qh1+ {[%emt 0:00:27]} 52. Qg1 {[%emt 0:00:59]} Qxg1+ {[%emt 0:00:11]} 53. Nxg1 {[%emt 0:01:14]} Bxd2 {[%emt 0:00:09]} 54. Ra1 {[%emt 0:00:25]} Bc3 {[%emt 0:00:32]} 55. Nf3 {[%emt 0:01:31]} Bxf3 {[%emt 0:00:15]} 0-1

[Event "Orsha A 2021"]
[Site "Orsha"]
[Date "2021.04.06"]
[Round "2.5"]
[White "Sargsyan, Anna M."]
[Black "Sarychev, Sergey"]
[Result "1-0"]
[ECO "D34"]
[WhiteElo "2380"]
[BlackElo "1904"]
[Annotator "ChessBase"]
[PlyCount "97"]
[EventDate "2021.04.06"]
[EventType "swiss"]
[EventCountry "BLR"]
[SourceTitle "playchess.com"]
[Source "ChessBase"]
[SourceQuality "1"]
[TimeControl "5400+30"]

1. d4 {[%emt 0:00:00]} d5 {[%emt 0:00:00]} 2. c4 {[%emt 0:00:00]} e6 {[%emt 0:00:00]} 3. Nc3 {[%emt 0:00:00]} c5 {[%emt 0:00:00]} 4. cxd5 {[%emt 0:00:01]} exd5 {[%emt 0:00:00]} 5. Nf3 {[%emt 0:00:09]} Nc6 {[%emt 0:00:00]} 6. g3 {[%emt 0:00:03]} Nf6 {[%emt 0:00:00]} 7. Bg2 {[%emt 0:00:05]} c4 {[%emt 0:00:27]} 8. O-O {[%emt 0:00:13]} Be7 {[%emt 0:00:04]} 9. Ne5 {[%emt 0:04:13]} O-O {[%emt 0:00:55]} 10. b3 {[%emt 0:00:09]} Qa5 {[%emt 0:08:44]} 11. Nxc6 {[%emt 0:05:32]} bxc6 {[%emt 0:00:06]} 12. Bd2 {[%emt 0:00:09]} Qb6 {[%emt 0:09:30]} 13. bxc4 {[%emt 0:01:59]} dxc4 {[%emt 0:14:14]} 14. e3 {[%emt 0:02:13]} Bf5 {[%emt 0:05:50]} 15. Re1 {[%emt 0:11:03]} Rac8 {[%emt 0:14:44]} 16. Qc1 {[%emt 0:04:51]} Bd3 {[%emt 0:09:37]} 17. a4 {[%emt 0:01:42]} a5 {[%emt 0:01:52]} 18. Bf1 {[%emt 0:02:13]} Rfd8 {[%emt 0:05:00]} 19. Rd1 {[%emt 0:07:19]} Qa6 {[%emt 0:08:20]} 20. Be1 {[%emt 0:00:57]} c5 {[%emt 0:02:45]} 21. Bh3 {[%emt 0:03:54]} cxd4 {[%emt 0:01:46]} 22. exd4 {[%emt 0:00:34]} Rb8 {[%emt 0:01:26]} 23. Nb5 {[%emt 0:00:19]} Nd5 {[%emt 0:02:09]} 24. Bg2 {[%emt 0:02:01]} Rbc8 {[%emt 0:02:52]} 25. Bh3 {[%emt 0:02:04]} Rb8 {[%emt 0:00:55]} 26. Bd2 {[%emt 0:00:09]} Bf6 {[%emt 0:01:34]} 27. Bg5 {[%emt 0:00:34]} h6 {[%emt 0:02:00]} 28. Bxf6 {[%emt 0:00:04]} Qxf6 {[%emt 0:00:22]} 29. Qd2 {[%emt 0:02:30]} Nb4 {[%emt 0:01:08]} 30. Bg2 {[%emt 0:02:48]} Rbc8 {[%emt 0:02:23]} 31. Rac1 {[%emt 0:00:28]} Re8 {[%emt 0:00:47]} 32. Re1 {[%emt 0:00:39]} Nc2 {[%emt 0:03:00]} 33. Rxe8+ {[%emt 0:03:01]} Rxe8 {[%emt 0:00:05]} 34. Rxc2 {[%emt 0:00:12]} Bxc2 {[%emt 0:02:15]} 35. Qxc2 {[%emt 0:00:06]} Re1+ {[%emt 0:00:02]} 36. Bf1 {[%emt 0:00:08]} Qe6 {[%emt 0:00:08]} 37. Kg2 {[%emt 0:02:22]} Qd5+ {[%emt 0:00:15]} 38. f3 {[%emt 0:00:03]} Re3 {[%emt 0:00:14]} 39. Be2 {[%emt 0:00:10]} c3 {[%emt 0:00:28]} 40. Kf2 {[%emt 0:00:20]} Re6 {[%emt 0:01:26]} 41. Qxc3 {[%emt 0:01:12]} Qa2 {[%emt 0:00:02]} 42. Qd3 {[%emt 0:00:28]} Qxa4 {[%emt 0:00:08]} 43. d5 {[%emt 0:00:04]} Re8 {[%emt 0:00:54]} 44. d6 {[%emt 0:00:11]} Qb4 {[%emt 0:01:16]} 45. d7 {[%emt 0:04:41]} Rd8 {[%emt 0:00:10]} 46. Qe3 {[%emt 0:03:48]} a4 {[%emt 0:00:44]} 47. Qe8+ {[%emt 0:00:31]} Qf8 {[%emt 0:00:08]} 48. Nd6 {[%emt 0:00:22]} a3 {[%emt 0:00:05]} 49. Bc4 {[%emt 0:00:04]} 1-0

[Event "Orsha A 2021"]
[Site "Orsha"]
[Date "2021.04.06"]
[Round "2.6"]
[White "Piatrenka, Ivan"]
[Black "Barseghyan, Armen Ar."]
[Result "0-1"]
[ECO "E46"]
[WhiteElo "1752"]
[BlackElo "2358"]
[Annotator "NA"]
[PlyCount "78"]
[EventDate "2021.04.06"]
[EventType "swiss"]
[EventCountry "BLR"]
[SourceTitle "playchess.com"]
[Source "ChessBase"]
[SourceQuality "1"]
[TimeControl "5400+30"]

1. d4 {[%emt 0:00:00]} Nf6 {[%emt 0:00:00]} 2. c4 {[%emt 0:00:00]} e6 {[%emt 0:00:00]} 3. Nc3 {[%emt 0:00:00]} Bb4 {[%emt 0:00:11]} 4. e3 {[%emt 0:00:16]} O-O {[%emt 0:00:18]} 5. Nge2 {[%emt 0:00:13]} d5 {[%emt 0:00:24]} 6. a3 {[%emt 0:00:20]} Be7 {[%emt 0:00:17]} 7. Ng3 {[%emt 0:00:11]} Nbd7 {[%emt 0:08:24]} 8. b4 {[%emt 0:09:19]} a5 {[%emt 0:05:39]} 9. b5 {[%emt 0:00:38]} c5 {[%emt 0:00:13]} 10. dxc5 {[%emt 0:03:39]} Nxc5 {[%emt 0:01:15]} 11. Bb2 {[%emt 0:03:59]} a4 {[%emt 0:02:41]} 12. Be2 {[%emt 0:01:53]} dxc4 {[%emt 0:04:55]} 13. Bxc4 {[%emt 0:00:21]} Qxd1+ {[%emt 0:04:35]} 14. Rxd1 {[%emt 0:00:24]} b6 {[%emt 0:00:04]} 15. O-O {[%emt 0:08:15]} Bb7 {[%emt 0:00:16]} 16. Nge2 {[%emt 0:24:19]} Rfc8 {[%emt 0:00:54]} 17. Ba2 {[%emt 0:05:52]} Kf8 {[%emt 0:14:24]} 18. Rd4 {[%emt 0:12:14]} Nfd7 {[%emt 0:06:50]} 19. h3 {[%emt 0:14:59]} Ke8 {[%emt 0:02:12]} 20. Rd2 {[%emt 0:03:53]} Nb3 {[%emt 0:04:37]} 21. Rdd1 {[%emt 0:00:49]} Ndc5 {[%emt 0:01:38]} 22. Bb1 {[%emt 0:02:49]} g6 {[%emt 0:12:22]} 23. Nc1 {[%emt 0:04:30]} Nxc1 {[%emt 0:03:10]} 24. Rxc1 {[%emt 0:00:14]} Nb3 {[%emt 0:00:15]} 25. Rcd1 {[%emt 0:02:06]} Bxa3 {[%emt 0:04:37]} 26. Bxa3 {[%emt 0:00:01]} Rxc3 {[%emt 0:00:05]} 27. Bb2 {[%emt 0:01:25]} Rcc8 {[%emt 0:00:57]} 28. Bf6 {[%emt 0:00:38]} a3 {[%emt 0:00:15]} 29. Ba2 {[%emt 0:00:20]} Nc5 {[%emt 0:00:03]} 30. Rd6 {[%emt 0:00:45]} Nd7 {[%emt 0:04:56]} 31. Bh4 {[%emt 0:00:30]} h6 {[%emt 0:02:19]} 32. Rfd1 {[%emt 0:00:16]} Bd5 {[%emt 0:00:26]} 33. Rxd7 {[%emt 0:00:47]} Kxd7 {[%emt 0:02:48]} 34. e4 {[%emt 0:00:01]} Rc2 {[%emt 0:00:11]} 35. Bb3 {[%emt 0:01:01]} Rb2 {[%emt 0:00:39]} 36. Bc4 {[%emt 0:00:25]} a2 {[%emt 0:02:12]} 37. exd5 {[%emt 0:00:35]} Rb1 {[%emt 0:00:14]} 38. dxe6+ {[%emt 0:00:04]} Ke8 {[%emt 0:00:07]} 39. exf7+ {[%emt 0:00:18]} Kf8 {[%emt 0:00:02]} 0-1

[Event "Orsha A 2021"]
[Site "Orsha"]
[Date "2021.04.06"]
[Round "2.7"]
[White "Tsaruk, Maksim"]
[Black "Klachkou, Platon"]
[Result "1-0"]
[ECO "C06"]
[WhiteElo "2306"]
[BlackElo "1756"]
[Annotator "NA"]
[PlyCount "82"]
[EventDate "2021.04.06"]
[EventType "swiss"]
[EventCountry "BLR"]
[SourceTitle "playchess.com"]
[Source "ChessBase"]
[SourceQuality "1"]
[TimeControl "5400+30"]

1. e4 {[%emt 0:00:00]} e6 {[%emt 0:01:42]} 2. d4 {[%emt 0:00:00]} d5 {[%emt 0:00:46]} 3. Nd2 {[%emt 0:00:00]} Nf6 {[%emt 0:02:05]} 4. e5 {[%emt 0:00:02]} Nfd7 {[%emt 0:00:04]} 5. Bd3 {[%emt 0:00:05]} c5 {[%emt 0:00:04]} 6. c3 {[%emt 0:00:03]} Nc6 {[%emt 0:00:06]} 7. Ne2 {[%emt 0:00:07]} cxd4 {[%emt 0:01:09]} 8. cxd4 {[%emt 0:00:04]} f6 {[%emt 0:00:34]} 9. exf6 {[%emt 0:00:06]} Nxf6 {[%emt 0:00:07]} 10. O-O {[%emt 0:00:06]} Bd6 {[%emt 0:00:05]} 11. Nf3 {[%emt 0:00:05]} Qc7 {[%emt 0:00:23]} 12. Bg5 {[%emt 0:00:07]} O-O {[%emt 0:00:06]} 13. Bh4 {[%emt 0:00:05]} e5 {[%emt 0:00:37]} 14. dxe5 {[%emt 0:01:58]} Nxe5 {[%emt 0:00:28]} 15. Nxe5 {[%emt 0:00:23]} Bxe5 {[%emt 0:00:08]} 16. Bg3 {[%emt 0:00:07]} Bxg3 {[%emt 0:00:41]} 17. Nxg3 {[%emt 0:01:21]} Bd7 {[%emt 0:00:33]} 18. Qb3 {[%emt 0:06:54]} Qb6 {[%emt 0:04:56]} 19. Qxb6 axb6 {[%emt 0:00:02]} 20. f3 {[%emt 0:16:51]} Rfe8 {[%emt 0:03:07]} 21. Rf2 {[%emt 0:13:19]} g6 {[%emt 0:03:16]} 22. b3 {[%emt 0:02:44]} Rac8 {[%emt 0:01:09]} 23. Rd1 {[%emt 0:00:10]} Bc6 $16 {[%emt 0:08:50]} 24. Rfd2 {[%emt 0:01:06]} Re7 {[%emt 0:01:48]} 25. Ne2 {[%emt 0:00:40]} Rce8 {[%emt 0:04:35]} 26. Nd4 {[%emt 0:13:36]} Nd7 {[%emt 0:01:05]} 27. Kf2 {[%emt 0:04:41]} Nc5 {[%emt 0:00:52]} 28. h4 {[%emt 0:05:27]} Kg7 {[%emt 0:03:53]} 29. Bb5 {[%emt 0:03:29]} Rc7 {[%emt 0:08:19]} 30. Bxc6 {[%emt 0:07:20]} bxc6 {[%emt 0:00:06]} 31. Rc2 {[%emt 0:00:03]} Kf6 {[%emt 0:14:15]} 32. b4 {[%emt 0:00:07]} Ne6 {[%emt 0:01:57]} 33. Nxc6 {[%emt 0:05:12]} b5 {[%emt 0:10:54]} 34. Rxd5 {[%emt 0:05:42]} Rd8 {[%emt 0:00:26]} 35. Rxd8 {[%emt 0:00:34]} Nxd8 {[%emt 0:00:03]} 36. Nd4 {[%emt 0:00:06]} Rxc2+ {[%emt 0:00:07]} 37. Nxc2 {[%emt 0:00:04]} Nc6 {[%emt 0:00:04]} 38. Ke3 {[%emt 0:01:32]} Ke5 {[%emt 0:00:02]} 39. f4+ {[%emt 0:00:19]} Kd5 {[%emt 0:00:10]} 40. Kd3 {[%emt 0:00:06]} h5 {[%emt 0:00:34]} 41. a3 {[%emt 0:00:07]} Nb8 {[%emt 0:30:22]} 1-0

[Event "Orsha A 2021"]
[Site "Orsha"]
[Date "2021.04.06"]
[Round "2.8"]
[White "Hvozdz, Aliaksandr"]
[Black "Siniauski, Artsiom"]
[Result "1/2-1/2"]
[ECO "C07"]
[WhiteElo "1709"]
[BlackElo "2277"]
[Annotator "NA"]
[PlyCount "159"]
[EventDate "2021.04.06"]
[EventType "swiss"]
[EventCountry "BLR"]
[SourceTitle "playchess.com"]
[Source "ChessBase"]
[SourceQuality "1"]
[TimeControl "5400+30"]

1. e4 {[%emt 0:00:00]} e6 {[%emt 0:00:00]} 2. d4 {[%emt 0:00:00]} d5 {[%emt 0:00:00]} 3. Nd2 {[%emt 0:00:00]} c5 {[%emt 0:00:00]} 4. exd5 {[%emt 0:00:05]} Qxd5 {[%emt 0:00:00]} 5. Ngf3 {[%emt 0:00:06]} cxd4 {[%emt 0:00:05]} 6. Bc4 {[%emt 0:00:08]} Qd8 {[%emt 0:00:11]} 7. Nb3 {[%emt 0:00:27]} Nc6 {[%emt 0:00:33]} 8. Nbxd4 {[%emt 0:00:24]} Nxd4 {[%emt 0:00:43]} 9. Nxd4 {[%emt 0:00:32]} a6 {[%emt 0:01:30]} 10. O-O {[%emt 0:01:07]} Bd6 {[%emt 0:00:18]} 11. h3 {[%emt 0:01:38]} Ne7 {[%emt 0:00:41]} 12. Qf3 {[%emt 0:02:16]} O-O {[%emt 0:03:30]} 13. Rd1 {[%emt 0:03:50]} Qc7 {[%emt 0:01:33]} 14. Bb3 {[%emt 0:01:57]} Bd7 {[%emt 0:10:13]} 15. Bg5 {[%emt 0:04:39]} h6 {[%emt 0:04:26]} 16. Bxe7 {[%emt 0:10:28]} Bxe7 {[%emt 0:00:08]} 17. Rd3 {[%emt 0:01:28]} Rfd8 {[%emt 0:03:31]} 18. Rad1 {[%emt 0:02:00]} Be8 {[%emt 0:01:57]} 19. Qe4 {[%emt 0:05:36]} Qb6 {[%emt 0:11:59]} 20. a4 {[%emt 0:10:22]} Bf6 {[%emt 0:11:00]} 21. Qe3 {[%emt 0:22:24]} Rd6 {[%emt 0:05:19]} 22. Qd2 {[%emt 0:06:08]} Rad8 {[%emt 0:03:26]} 23. a5 {[%emt 0:16:25]} Qc5 {[%emt 0:06:10]} 24. Ne2 {[%emt 0:02:46]} Rxd3 {[%emt 0:00:42]} 25. cxd3 {[%emt 0:00:07]} Bb5 {[%emt 0:12:26]} 26. d4 {[%emt 0:02:14]} Qg5 {[%emt 0:00:32]} 27. Qxg5 {[%emt 0:02:25]} hxg5 {[%emt 0:00:07]} 28. Nc3 {[%emt 0:00:08]} Rxd4 {[%emt 0:02:28]} 29. Nxb5 {[%emt 0:00:24]} axb5 {[%emt 0:00:11]} 30. Rxd4 {[%emt 0:01:13]} Bxd4 {[%emt 0:00:09]} 31. Bd1 {[%emt 0:00:09]} Bxb2 {[%emt 0:00:11]} 32. Bf3 {[%emt 0:00:20]} Bc3 {[%emt 0:00:05]} 33. Bxb7 {[%emt 0:00:07]} Bxa5 {[%emt 0:00:04]} 34. Bc6 {[%emt 0:00:22]} b4 {[%emt 0:00:04]} 35. Ba4 {[%emt 0:00:09]} Kf8 {[%emt 0:00:35]} 36. Kf1 {[%emt 0:00:32]} Ke7 {[%emt 0:00:05]} 37. Ke2 {[%emt 0:00:09]} Bb6 {[%emt 0:00:35]} 38. f3 {[%emt 0:01:19]} Kd6 {[%emt 0:00:05]} 39. Bb3 {[%emt 0:00:14]} Ke5 {[%emt 0:00:16]} 40. Kd3 {[%emt 0:00:10]} Kf4 {[%emt 0:01:45]} 41. Ke2 {[%emt 0:00:10]} Bc5 {[%emt 0:00:30]} 42. Ba2 {[%emt 0:00:19]} Ke5 {[%emt 0:01:31]} 43. Kd3 {[%emt 0:01:27]} f6 {[%emt 0:00:17]} 44. Bb3 {[%emt 0:00:38]} Kf5 {[%emt 0:00:15]} 45. Ke2 {[%emt 0:01:27]} e5 {[%emt 0:00:38]} 46. g3 {[%emt 0:02:03]} Bb6 {[%emt 0:06:40]} 47. Bd5 {[%emt 0:00:43]} Ba7 {[%emt 0:02:29]} 48. Kd3 {[%emt 0:00:24]} Bf2 {[%emt 0:09:01]} 49. Be4+ {[%emt 0:00:08]} Ke6 {[%emt 0:00:04]} 50. g4 {[%emt 0:00:04]} Kd6 {[%emt 0:00:41]} 51. Kc4 {[%emt 0:00:16]} Be1 {[%emt 0:00:05]} 52. Bf5 {[%emt 0:00:42]} Kc6 {[%emt 0:02:02]} 53. Be4+ {[%emt 0:00:10]} Kb6 {[%emt 0:00:15]} 54. Bf5 {[%emt 0:00:28]} Ka5 {[%emt 0:00:06]} 55. Bc2 {[%emt 0:00:06]} Bd2 {[%emt 0:01:05]} 56. Bd1 {[%emt 0:00:21]} g6 {[%emt 0:01:36]} 57. Bc2 {[%emt 0:00:05]} f5 {[%emt 0:00:43]} 58. gxf5 {[%emt 0:00:12]} gxf5 {[%emt 0:00:04]} 59. Bxf5 {[%emt 0:00:09]} Ka4 {[%emt 0:00:10]} 60. Bc2+ {[%emt 0:00:25]} Ka3 {[%emt 0:00:03]} 61. Bb3 {[%emt 0:00:10]} Be1 {[%emt 0:00:52]} 62. Bd1 {[%emt 0:00:10]} Kb2 {[%emt 0:00:18]} 63. Ba4 {[%emt 0:00:19]} Bc3 {[%emt 0:00:15]} 64. Bb3 {[%emt 0:00:59]} Ka1 {[%emt 0:01:12]} 65. Bd1 {[%emt 0:00:21]} Ka2 {[%emt 0:00:16]} 66. Bb3+ {[%emt 0:00:20]} Kb1 {[%emt 0:00:04]} 67. Ba4 {[%emt 0:00:10]} Be1 {[%emt 0:00:17]} 68. Kb3 {[%emt 0:00:11]} Kc1 {[%emt 0:00:15]} 69. Bd7 {[%emt 0:00:08]} Kd1 {[%emt 0:00:08]} 70. Bg4 {[%emt 0:00:10]} Kc1 {[%emt 0:00:30]} 71. Be6 {[%emt 0:00:08]} Bc3 {[%emt 0:00:05]} 72. Bg4 {[%emt 0:00:09]} Kd2 {[%emt 0:00:07]} 73. Be6 {[%emt 0:00:09]} Ke2 {[%emt 0:00:07]} 74. Bg4 {[%emt 0:00:07]} Ke3 {[%emt 0:00:04]} 75. Kc2 {[%emt 0:00:09]} Bd4 {[%emt 0:01:18]} 76. Kb3 {[%emt 0:00:24]} Bc5 {[%emt 0:00:05]} 77. Kc4 {[%emt 0:00:20]} Bf8 {[%emt 0:00:25]} 78. Kb3 {[%emt 0:00:08]} Kd2 {[%emt 0:00:16]} 79. Bf5 {[%emt 0:00:08]} Be7 {[%emt 0:00:54]} 80. Bg4 {[%emt 0:00:06]} 1/2-1/2